bitfinex/quotes_SOLUSD_20251002
["timestamp","ask_amount","ask_price","bid_price","bid_amount"]
[1759415506243,5.08053235,226.73,226.68,20.8]
[1759415506448,5.08053235,226.73,226.69,42.11647521]
[1759415506663,4.41053235,226.73,226.69,42.11647521]
[1759415506865,5.08053235,226.73,226.69,42.11647521]
[1759415507173,0.67,226.73,226.69,42.11647521]
[1759415507470,6.79050678,226.75,226.69,42.11647521]
[1759415507672,1.7102757,226.74,226.69,42.11647521]
[1759415507864,0.67,226.73,226.69,42.11647521]
[1759415508170,1.7102757,226.74,226.69,42.11647521]
[1759415508365,0.67,226.74,226.69,42.11647521]
[1759415508774,1.7102757,226.7,226.59,4.41325742]
[1759415508982,1.7102757,226.66,226.62,10.87647521]
[1759415509170,1.7102757,226.66,226.58,0.56]
[1759415509171,1.7102757,226.64,226.58,15.43800582]
[1759415509476,2.3802757,226.64,226.59,31.26]
[1759415509679,0.67,226.63,226.59,31.26]
[1759415510181,5.08267319,226.62,226.53,13.25468884]
[1759415510378,1.7102757,226.64,226.54,31.82]
[1759415510581,2.3802757,226.65,226.56,10.87647521]
[1759415510763,2.3802757,226.65,226.58,10.87647521]
[1759415510965,2.3802757,226.64,226.58,10.87647521]
[1759415511158,2.3802757,226.63,226.55,0.56]
[1759415511358,2.3802757,226.63,226.56,10.87647521]
[1759415511554,0.67,226.62,226.55,31.28]
[1759415511759,1.7102757,226.61,226.55,31.28]
[1759415511960,4.41325742,226.59,226.55,10.87647521]
[1759415512261,6.12353312,226.59,226.48,12.9679191]
[1759415512482,0.67,226.58,226.52,10.87647521]
[1759415512669,6.12353312,226.59,226.5,31.28]
[1759415512670,4.41325742,226.59,226.5,31.28]
[1759415512862,0.67,226.58,226.53,20.8]
[1759415513263,2.3802757,226.58,226.51,10.87647521]
[1759415513495,2.3802757,226.57,226.51,10.87647521]
[1759415513983,0.67,226.57,226.51,15.29127285]
[1759415514292,6.79402958,226.57,226.5,10.87647521]
[1759415514461,1.7102757,226.56,226.5,10.87647521]
[1759415514660,6.79402958,226.57,226.5,10.87647521]
[1759415515676,4.41403663,226.55,226.5,10.87647521]
[1759415515992,0.67,226.54,226.48,10.87647521]
[1759415516202,2.3802757,226.54,226.48,10.87647521]
[1759415516486,2.3802757,226.58,226.5,10.87647521]
[1759415516866,1.7102757,226.57,226.5,10.87647521]
[1759415517062,2.3802757,226.57,226.5,10.87647521]
[1759415517273,2.3802757,226.56,226.5,10.87647521]
[1759415517476,2.3802757,226.56,226.47,67.37203766]
[1759415517692,1.7102757,226.55,226.47,57.05556245]
[1759415517862,6.12442594,226.55,226.48,11.43647521]
[1759415518065,0.67,226.56,226.48,11.43647521]
[1759415518066,6.12398607,226.57,226.49,0.56]
[1759415518267,6.12398607,226.57,226.5,10.87647521]
[1759415518785,4.41371037,226.57,226.5,11.43647521]
[1759415518962,6.12398607,226.57,226.5,11.43647521]
[1759415519164,4.41342775,226.59,226.51,0.56]
[1759415519393,4.41342775,226.59,226.52,10.87647521]
[1759415519569,4.41342775,226.59,226.53,0.56]
[1759415519768,6.12333873,226.6,226.53,4.97430829]
[1759415519993,4.41306303,226.6,226.53,4.97430829]
[1759415520220,5.08287297,226.61,226.53,4.97430829]
[1759415520399,0.67,226.64,226.56,10.87647521]
[1759415520692,0.67,226.66,226.58,10.87647521]
[1759415521065,0.67,226.66,226.58,0.56]
[1759415521264,0.67,226.66,226.59,21.36]
[1759415521496,2.4102757,226.65,226.59,20.8]
[1759415521862,0.7,226.65,226.59,20.8]
[1759415522085,5.11211684,226.65,226.59,20.8]
[1759415522389,6.82239254,226.65,226.59,20.8]
[1759415522704,1.7102757,226.62,226.56,42.17647521]
[1759415522867,0.7,226.61,226.56,42.17647521]
[1759415523469,0.7,226.61,226.55,20.8]
[1759415523689,0.7,226.6,226.53,10.87647521]
[1759415523999,1.7102757,226.62,226.54,11.43647521]
[1759415524204,0.7,226.64,226.56,10.87647521]
[1759415524600,1.7102757,226.63,226.56,10.87647521]
[1759415524900,1.7102757,226.58,226.5,10.87647521]
[1759415525106,1.7102757,226.57,226.5,42.21647521]
[1759415525404,1.7102757,226.56,226.5,42.21647521]
[1759415526317,0.7,226.55,226.47,13.25878947]
[1759415526483,2.4102757,226.55,226.47,0.56]
[1759415526807,2.4102757,226.55,226.48,10.87647521]
[1759415527014,1.7102757,226.54,226.48,10.87647521]
[1759415528013,4.41442634,226.53,226.48,10.87647521]
[1759415528302,5.11442634,226.53,226.48,10.87647521]
[1759415528501,6.82470204,226.53,226.48,10.87647521]
[1759415528691,6.82470204,226.53,226.47,20.8]
[1759415528889,16.1504922,226.53,226.47,20.8]
[1759415529091,1.7102757,226.51,226.44,11.07647521]
[1759415529294,2.4102757,226.51,226.44,11.07647521]
[1759415529511,1.7102757,226.5,226.44,11.07647521]
[1759415529818,15.4504922,226.53,226.44,0.2]
[1759415529819,2.4102757,226.49,226.44,0.2]
[1759415529981,1.7102757,226.49,226.44,0.2]
[1759415530183,0.7,226.51,226.44,4.61617472]
[1759415530387,4.41443922,226.53,226.46,10.87647521]
[1759415530590,0.7,226.54,226.47,0.56]
[1759415530803,6.82451306,226.54,226.47,0.56]
[1759415530999,31.44,226.61,226.47,0.56]
[1759415531290,0.7,226.57,226.48,10.87647521]
[1759415531597,1.7102757,226.55,226.48,10.87647521]
[1759415531797,1.7102757,226.55,226.48,90.07647521]
[1759415532198,6.82450718,226.54,226.48,79.2]
[1759415532613,6.82450718,226.54,226.48,83.61536978]
[1759415533016,6.82450718,226.54,226.48,79.2]
[1759415533607,1.7102757,226.51,226.48,79.2]
[1759415533905,0.7,226.5,226.48,79.2]
[1759415534100,4.41501103,226.5,226.45,90.07647521]
[1759415534520,2.4102757,226.49,226.44,79.4]
[1759415534817,1.7102757,226.49,226.44,79.4]
[1759415534989,1.7102757,226.49,226.44,79.96]
[1759415535309,6.82528673,226.5,226.44,79.96]
[1759415535513,1.7102757,226.5,226.44,84.37610931]
[1759415535709,1.7102757,226.51,226.44,84.37610931]
[1759415535891,6.12509819,226.51,226.44,84.37610931]
[1759415536216,1.7102757,226.52,226.45,11.43647521]
[1759415536516,1.7102757,226.54,226.47,10.87647521]
[1759415536718,1.7102757,226.54,226.48,0.56]
[1759415537423,1.7102757,226.55,226.48,0.56]
[1759415537602,4.41423148,226.54,226.48,4.9753778]
[1759415537801,5.11358282,226.58,226.49,11.43647521]
[1759415538003,2.4102757,226.61,226.51,10.87647521]
[1759415538190,0.7,226.62,226.53,10.87647521]
[1759415538392,2.4102757,226.62,226.53,11.43647521]
[1759415538604,1.7102757,226.59,226.52,10.87647521]
[1759415538795,1.7102757,226.6,226.53,0.56]
[1759415539126,1.7102757,226.62,226.55,10.87647521]
[1759415539422,4.41269483,226.62,226.55,11.43647521]
[1759415539613,6.12297053,226.62,226.55,11.43647521]
[1759415540223,1.7102757,226.6,226.52,11.43647521]
[1759415540412,1.7102757,226.6,226.54,10.87647521]
[1759415540715,0.7,226.61,226.54,10.87647521]
[1759415541415,5.11301093,226.61,226.54,15.29053345]
[1759415541720,4.41261954,226.63,226.55,0.56]
[1759415541899,6.12289524,226.63,226.55,0.56]
[1759415542100,0.7,226.62,226.55,0.56]
[1759415542301,2.4102757,226.62,226.55,0.56]
[1759415542734,1.7102757,226.61,226.54,15.29053345]
[1759415543218,2.4102757,226.62,226.54,15.29053345]
[1759415543417,1.7102757,226.62,226.54,15.29053345]
[1759415543606,1.7102757,226.66,226.55,0.56]
[1759415543803,6.79236482,226.65,226.55,0.56]
[1759415544013,1.7102757,226.64,226.55,0.56]
[1759415544211,2.3802757,226.63,226.56,31.38]
[1759415544522,0.67,226.63,226.56,31.38]
[1759415545019,2.3802757,226.63,226.56,31.38]
[1759415545227,17.15258763,226.65,226.57,10.87647521]
[1759415545416,17.82258763,226.65,226.57,10.87647521]
[1759415545616,17.82258763,226.65,226.57,15.29010777]
[1759415545801,0.67,226.65,226.58,0.56]
[1759415546001,1.7102757,226.66,226.58,0.56]
[1759415546212,5.08169982,226.67,226.59,10.87647521]
[1759415546417,5.08169982,226.67,226.61,10.87647521]
[1759415546826,0.67,226.67,226.61,10.87647521]
[1759415547007,11.02706252,226.72,226.61,10.87647521]
[1759415547207,1.7102757,226.7,226.61,10.87647521]
[1759415547432,2.3802757,226.7,226.61,11.43647521]
[1759415547636,0.67,226.7,226.61,11.43647521]
[1759415547823,4.4113106,226.69,226.62,4.41267319]
[1759415548018,0.67,226.68,226.61,10.87647521]
[1759415548220,3.3458329,226.68,226.61,10.87647521]
[1759415548932,0.67,226.68,226.61,15.28931077]
[1759415549115,0.67,226.68,226.62,0.56]
[1759415549316,0.67,226.68,226.61,15.28931077]
[1759415549618,0.67,226.68,226.61,15.84931077]
[1759415550302,0.67,226.7,226.63,10.87647521]
[1759415550508,0.67,226.7,226.63,11.43647521]
[1759415550938,0.67,226.7,226.63,0.56]
[1759415551142,2.6758329,226.71,226.63,0.56]
[1759415551627,3.3458329,226.71,226.63,0.56]
[1759415552408,4.41111601,226.7,226.62,15.28913856]
[1759415552604,5.08111601,226.7,226.62,15.28913856]
[1759415553414,7.75694891,226.7,226.62,15.28913856]
[1759415553730,7.08694891,226.7,226.62,26.31546943]
[1759415553931,4.4115052,226.68,226.62,15.28913856]
[1759415554518,4.4115052,226.68,226.63,10.87647521]
[1759415555029,5.0813106,226.69,226.63,15.84890648]
[1759415556348,2.6758329,226.67,226.61,13.25117604]
[1759415556523,2.6758329,226.64,226.55,0.56]
[1759415556728,2.6758329,226.61,226.55,13.81527449]
[1759415556920,33.9958329,226.68,226.55,13.25527449]
[1759415556921,2.6758329,226.59,226.55,13.25527449]
[1759415557243,0.67,226.58,226.51,4.41478781]
[1759415557545,3.3458329,226.62,226.53,31.67647521]
[1759415557773,3.3458329,226.62,226.54,0.56]
[1759415557913,4.41286792,226.61,226.54,4.97417315]
[1759415558113,4.41286792,226.61,226.54,25.77417315]
[1759415558826,7.08870082,226.61,226.54,25.77417315]
[1759415559138,0.67,226.66,226.59,10.87647521]
[1759415559316,0.67,226.69,226.62,20.8]
[1759415559640,2.6758329,226.67,226.61,10.87647521]
[1759415559842,0.67,226.66,226.6,10.87647521]
[1759415560214,2.6758329,226.64,226.58,20.8]
[1759415560413,3.3458329,226.64,226.58,20.8]
[1759415560712,0.67,226.63,226.58,20.8]
[1759415561342,5.08180914,226.67,226.59,0.56]
[1759415561540,7.75764204,226.67,226.59,0.56]
[1759415561743,2.6758329,226.65,226.58,20.8]
[1759415562062,2.6758329,226.63,226.58,20.8]
[1759415562220,5.08267319,226.62,226.58,20.8]
[1759415562423,3.3458329,226.61,226.56,21.90637663]
[1759415562732,0.67,226.6,226.56,10.87647521]
[1759415563755,0.67,226.59,226.55,20.8]
[1759415563917,2.6758329,226.56,226.51,10.87647521]
[1759415564121,5.0842264,226.55,226.5,10.87647521]
[1759415564439,3.3458329,226.54,226.47,0.56]
[1759415564651,3.3458329,226.54,226.49,20.8]
[1759415564954,0.67,226.54,226.49,20.8]
[1759415565133,0.67,226.53,226.49,20.8]
[1759415565940,7.09018755,226.54,226.49,20.8]
[1759415566154,3.3458329,226.53,226.46,42.97392239]
[1759415566344,3.3458329,226.52,226.44,0.2]
[1759415566547,2.6758329,226.51,226.45,10.87647521]
[1759415566755,2.6758329,226.48,226.44,13.46230631]
[1759415567056,15.44993335,226.54,226.44,13.46230631]
[1759415567057,2.6758329,226.51,226.44,21.0]
[1759415567230,0.67,226.5,226.45,20.8]
[1759415567429,0.67,226.49,226.45,20.8]
[1759415567639,2.6758329,226.52,226.45,20.8]
[1759415567949,4.41481612,226.51,226.45,20.8]
[1759415568317,3.3458329,226.52,226.45,25.21587987]
[1759415568544,2.6758329,226.54,226.46,0.56]
[1759415568853,3.3458329,226.54,226.46,0.56]
[1759415569346,0.67,226.54,226.46,0.56]
[1759415569541,3.3458329,226.54,226.46,0.56]
[1759415570136,7.09025924,226.53,226.45,20.8]
[1759415570343,2.6758329,226.51,226.44,0.2]
[1759415570652,3.3458329,226.5,226.44,0.2]
[1759415572451,4.41520596,226.49,226.44,0.2]
[1759415572649,15.45322088,226.49,226.44,0.2]
[1759415572847,0.67,226.48,226.44,0.2]
[1759415573353,0.67,226.47,226.44,0.2]
[1759415573646,0.67,226.46,226.44,0.2]
[1759415573824,0.67,226.45,226.44,0.2]
[1759415574225,5.08598586,226.45,226.44,0.2]
[1759415574433,0.67,226.45,226.44,0.2]
[1759415574835,5.08554179,226.48,226.44,0.2]
[1759415575349,0.67,226.47,226.44,0.2]
[1759415575553,0.67,226.5,226.44,11.07647521]
[1759415575755,0.67,226.5,226.44,15.49258874]
[1759415575932,4.41481892,226.51,226.46,10.87647521]
[1759415576331,4.41462122,226.52,226.46,10.87647521]
[1759415576550,0.67,226.51,226.44,0.2]
[1759415576759,0.67,226.51,226.44,11.07647521]
[1759415577444,15.45117428,226.52,226.44,11.07647521]
[1759415577660,0.67,226.51,226.44,11.07647521]
[1759415578174,0.67,226.51,226.44,15.49256159]
[1759415578373,0.67,226.5,226.44,11.07647521]
[1759415578962,0.67,226.5,226.44,15.49265171]
[1759415579166,0.67,226.5,226.44,11.07647521]
[1759415579460,0.67,226.49,226.44,0.2]
[1759415579667,0.67,226.48,226.44,0.2]
[1759415579960,0.67,226.47,226.44,0.2]
[1759415580285,3.3458329,226.46,226.44,0.2]
[1759415580439,4.41598586,226.45,226.44,0.2]
[1759415580630,7.09181876,226.45,226.44,0.2]
[1759415580852,7.76181876,226.45,226.44,0.2]
[1759415582167,7.76181876,226.45,226.44,1e-08]
[1759415582350,10.43765166,226.45,226.43,1e-08]
[1759415582671,2.6758329,226.44,226.43,1e-08]
[1759415583036,3.3758329,226.44,226.43,1e-08]
[1759415583238,6.0516658,226.44,226.43,1e-08]
[1759415584375,10.46784668,226.44,226.43,1e-08]
[1759415585156,21.34432189,226.44,226.43,1e-08]
[1759415585364,20.8,226.41,226.29,0.56]
[1759415585567,20.8,226.41,226.3,10.87647521]
[1759415585752,2.6758329,226.38,226.3,10.87647521]
[1759415585953,2.6758329,226.36,226.29,0.56]
[1759415586153,2.6758329,226.36,226.29,4.97910634]
[1759415586389,20.8,226.41,226.31,10.87647521]
[1759415586575,15.44019984,226.45,226.35,10.87647521]
[1759415586775,15.44019984,226.45,226.37,10.87647521]
[1759415586964,2.6758329,226.44,226.37,10.87647521]
[1759415587285,2.6758329,226.44,226.36,0.56]
[1759415587286,2.6758329,226.42,226.36,0.56]
[1759415587468,2.6758329,226.43,226.36,0.56]
[1759415587656,0.7,226.42,226.33,32.23647521]
[1759415587856,2.6758329,226.37,226.31,0.56]
[1759415588066,3.3758329,226.37,226.3,10.87647521]
[1759415588263,3.3758329,226.37,226.3,11.43647521]
[1759415588463,4.41774165,226.36,226.3,11.43647521]
[1759415588972,3.3758329,226.37,226.3,15.85538268]
[1759415589179,4.41694171,226.41,226.32,10.87647521]
[1759415589384,4.41694171,226.41,226.34,10.87647521]
[1759415589568,2.6758329,226.39,226.32,10.87647521]
[1759415589766,2.6758329,226.37,226.3,20.8]
[1759415590075,2.6758329,226.36,226.3,20.8]
[1759415590263,2.6758329,226.38,226.31,0.56]
[1759415590462,4.41793682,226.35,226.29,0.56]
[1759415590866,2.6758329,226.34,226.29,0.56]
[1759415591056,7.09376972,226.35,226.29,0.56]
[1759415591365,7.09376972,226.35,226.29,4.97902005]
[1759415591366,4.41793682,226.35,226.29,4.97902005]
[1759415591673,7.09376972,226.35,226.28,11.07647521]
[1759415591873,7.09376972,226.35,226.28,11.63647521]
[1759415592176,4.41793682,226.35,226.28,0.2]
[1759415592478,2.6758329,226.32,226.28,0.2]
[1759415592711,4.41871768,226.31,226.28,0.2]
[1759415592859,2.6758329,226.3,226.28,0.2]
[1759415593192,3.3758329,226.3,226.28,0.2]
[1759415593558,0.7,226.29,226.28,0.2]
[1759415594061,4.4184145,226.33,226.28,0.2]
[1759415594375,6.55761857,226.32,226.28,0.2]
[1759415594582,6.55761857,226.29,226.28,0.2]
[1759415595483,6.55761857,226.3,226.28,0.2]
[1759415595863,4.41832722,226.33,226.28,11.07647521]
[1759415596068,5.11832722,226.33,226.28,11.07647521]
[1759415596266,4.41832722,226.33,226.28,11.07647521]
[1759415596585,0.7,226.32,226.28,0.2]
[1759415596887,6.55761857,226.34,226.28,0.2]
[1759415597078,6.55761857,226.34,226.29,0.56]
[1759415597382,10.97578714,226.34,226.28,4.61927245]
[1759415597562,10.97578714,226.34,226.28,0.2]
[1759415598266,21.5,226.37,226.3,10.87647521]
[1759415598464,0.7,226.37,226.3,10.87647521]
[1759415598671,4.41735571,226.38,226.3,10.87647521]
[1759415598863,11.02403327,226.45,226.32,10.87647521]
[1759415598864,7.25761857,226.4,226.32,10.87647521]
[1759415599173,0.7,226.4,226.34,10.87647521]
[1759415599885,6.55761857,226.37,226.3,10.87647521]
[1759415600179,21.5,226.41,226.32,10.87647521]
[1759415600354,6.55761857,226.4,226.34,10.87647521]
[1759415600553,5.11695406,226.41,226.34,10.87647521]
[1759415601087,5.11695406,226.41,226.34,15.29453517]
[1759415601785,5.11695406,226.41,226.34,10.87647521]
[1759415601973,6.55761857,226.39,226.3,11.43647521]
[1759415602173,6.55761857,226.37,226.3,10.87647521]
[1759415602588,0.7,226.38,226.3,10.87647521]
[1759415602811,4.41774165,226.36,226.3,15.29536601]
[1759415603592,5.10774165,226.36,226.3,10.87647521]
[1759415603777,5.10774165,226.36,226.29,10.87647521]
[1759415603967,4.41774165,226.36,226.3,0.56]
[1759415604281,4.41718335,226.39,226.3,0.56]
[1759415604888,4.41697109,226.4,226.32,10.87647521]
[1759415605075,4.41697109,226.4,226.32,11.43647521]
[1759415605388,7.24761857,226.39,226.32,10.87647521]
[1759415605580,6.55761857,226.37,226.3,10.87647521]
[1759415605782,6.55761857,226.34,226.28,21.0]
[1759415605983,7.24761857,226.34,226.29,10.87647521]
[1759415606184,0.69,226.33,226.28,0.2]
[1759415606389,6.55761857,226.31,226.28,0.2]
[1759415606691,6.55761857,226.33,226.28,0.2]
[1759415607196,5.10849798,226.33,226.28,0.2]
[1759415607379,11.66611655,226.33,226.28,0.2]
[1759415607567,0.69,226.32,226.28,0.2]
[1759415607978,6.55761857,226.32,226.28,0.2]
[1759415608171,7.24761857,226.31,226.28,0.2]
[1759415608469,4.47482749,226.29,226.28,0.2]
[1759415608888,5.16482749,226.29,226.28,0.2]
[1759415609087,9.58393571,226.29,226.28,0.2]
[1759415609606,4.41910822,226.29,226.28,0.2]
[1759415609903,4.41891096,226.31,226.28,0.2]
[1759415610080,8.8929595,226.34,226.28,0.2]
[1759415610397,0.69,226.32,226.28,0.2]
[1759415611196,8.89332344,226.33,226.28,0.2]
[1759415611491,0.69,226.32,226.28,0.2]
[1759415611797,4.41812734,226.35,226.28,0.76]
[1759415612497,4.41812734,226.35,226.28,0.2]
[1759415612702,5.10812734,226.35,226.28,0.2]
[1759415612998,9.58295483,226.35,226.28,0.2]
[1759415613578,9.58295483,226.35,226.28,11.07647521]
[1759415613784,5.16482749,226.34,226.28,11.07647521]
[1759415613979,0.69,226.33,226.28,11.07647521]
[1759415614180,0.69,226.32,226.28,11.07647521]
[1759415614675,5.16482749,226.34,226.28,11.07647521]
[1759415615283,0.69,226.34,226.28,11.07647521]
[1759415615475,4.41832722,226.33,226.28,0.2]
[1759415615676,0.69,226.34,226.28,15.49572292]
[1759415615876,5.10820552,226.34,226.28,11.07647521]
[1759415616371,2.40763079,226.33,226.28,0.2]
[1759415616572,1.71763079,226.3,226.28,0.2]
[1759415617003,0.69,226.29,226.28,0.2]
[1759415617182,2.40763079,226.29,226.28,0.2]
[1759415617382,6.82673901,226.29,226.28,0.2]
[1759415618300,9.58453305,226.29,226.28,0.2]
[1759415620372,9.58453305,226.29,226.28,1e-08]
[1759415621411,5.10910822,226.29,226.28,1e-08]
[1759415621572,9.58453305,226.29,226.28,1e-08]
[1759415621974,41.08453305,226.29,226.28,1e-08]
[1759415622174,9.58453305,226.29,226.28,1e-08]
[1759415622506,4.41910822,226.29,226.28,1e-08]
[1759415623082,9.58453305,226.29,226.28,1e-08]
[1759415624301,41.10453305,226.29,226.28,1e-08]
[1759415624915,35.93910822,226.29,226.28,1e-08]
[1759415625081,9.58453305,226.29,226.28,1e-08]
[1759415625384,41.12453305,226.29,226.28,1e-08]
[1759415625592,36.64910822,226.29,226.28,1e-08]
[1759415625802,41.12453305,226.29,226.28,1e-08]
[1759415626902,36.64910822,226.29,226.28,1e-08]
[1759415627109,41.12453305,226.29,226.28,1e-08]
[1759415630003,20.8,226.26,226.15,0.2]
[1759415630212,4.47542483,226.16,226.15,0.2]
[1759415630504,31.7,226.16,226.15,0.2]
[1759415630892,36.17542483,226.16,226.15,0.2]
[1759415631196,40.59707322,226.16,226.15,0.2]
[1759415631393,41.28707322,226.16,226.1,0.2]
[1759415631600,4.47542483,226.12,226.1,0.2]
[1759415632394,0.69,226.11,226.1,0.2]
[1759415633315,9.58805098,226.11,226.1,0.2]
[1759415633609,4.47542483,226.11,226.1,0.2]
[1759415633800,36.12262615,226.11,226.1,0.2]
[1759415634002,36.10262615,226.11,226.1,0.2]
[1759415634301,31.68,226.13,226.1,0.91]
[1759415634807,4.47542483,226.12,226.1,0.2]
[1759415635232,4.42243056,226.12,226.1,0.2]
[1759415635395,8.89785539,226.12,226.1,0.2]
[1759415636384,4.42206155,226.14,226.1,0.2]
[1759415636699,4.47542483,226.13,226.1,0.2]
[1759415636899,36.15542483,226.13,226.1,0.2]
[1759415637096,36.15542483,226.13,226.1,0.91]
[1759415637296,4.47542483,226.15,226.11,0.71]
[1759415637498,31.68,226.14,226.11,0.71]
[1759415637692,4.47542483,226.15,226.12,0.71]
[1759415637891,4.42106193,226.19,226.13,0.71]
[1759415638113,36.10106193,226.19,226.13,0.71]
[1759415638324,37.82117876,226.19,226.13,0.71]
[1759415638820,1.72011683,226.17,226.1,11.07647521]
[1759415639023,1.72011683,226.17,226.07,0.2]
[1759415639024,53.17,226.16,226.07,0.2]
[1759415639323,6.14332985,226.08,226.07,0.2]
[1759415639499,36.18321302,226.08,226.07,0.2]
[1759415639711,38.59332985,226.08,226.07,0.2]
[1759415640226,36.18321302,226.08,226.07,0.2]
[1759415640518,40.66756836,226.08,226.07,0.2]
[1759415640908,4.4230003,226.1,226.07,0.2]
[1759415641108,31.76,226.09,226.07,0.2]
[1759415641320,36.24435534,226.09,226.07,0.2]
[1759415641632,31.78,226.09,226.07,0.2]
[1759415642199,31.78,226.11,226.08,0.69]
[1759415642400,31.78,226.11,226.09,0.69]
[1759415642617,4.42219067,226.14,226.09,0.69]
[1759415642921,31.78,226.13,226.09,0.69]
[1759415643333,36.20224461,226.13,226.1,0.69]
[1759415643617,31.78,226.16,226.11,0.69]
[1759415643823,31.78,226.16,226.1,10.87647521]
[1759415644196,5.14435534,226.15,226.07,0.2]
[1759415644427,4.48435534,226.14,226.07,0.2]
[1759415644625,31.78,226.13,226.07,0.2]
[1759415644824,4.48435534,226.12,226.07,0.2]
[1759415645010,32.44,226.13,226.07,0.2]
[1759415645011,4.48435534,226.1,226.07,0.2]
[1759415645347,11.71491755,226.15,226.07,0.2]
[1759415645500,51.74149339,226.14,226.08,10.87647521]
[1759415645698,31.78,226.14,226.08,10.87647521]
[1759415645900,36.26435534,226.14,226.08,10.87647521]
[1759415646428,36.92435534,226.14,226.07,0.2]
[1759415646631,4.48435534,226.13,226.07,0.2]
[1759415646836,4.48435534,226.12,226.07,0.2]
[1759415647435,4.42262615,226.11,226.07,0.2]
[1759415648445,0.66,226.1,226.07,0.2]
[1759415648613,0.66,226.09,226.07,0.2]
[1759415648938,0.66,226.08,226.07,0.2]
[1759415649107,5.14435534,226.08,226.07,0.2]
[1759415649306,31.76,226.1,226.07,0.2]
[1759415649307,4.42164839,226.16,226.08,10.87647521]
[1759415649525,9.56581155,226.17,226.1,10.87647521]
[1759415649725,5.08145621,226.17,226.1,10.87647521]
[1759415650203,4.42125477,226.19,226.11,0.69]
[1759415650527,4.42125477,226.19,226.12,10.87647521]
[1759415650914,31.84,226.2,226.11,31.67647521]
[1759415651244,36.26104979,226.2,226.14,10.87647521]
[1759415651409,4.4212574,226.18,226.14,10.87647521]
[1759415651612,5.0812574,226.18,226.14,10.87647521]
[1759415651820,0.66,226.17,226.1,10.87647521]
[1759415652019,5.14435534,226.17,226.1,31.67647521]
[1759415652221,0.66,226.16,226.1,20.8]
[1759415652448,32.5,226.16,226.1,20.8]
[1759415653320,4.48435534,226.14,226.09,20.8]
[1759415653515,4.42223499,226.13,226.09,20.8]
[1759415653820,4.42206007,226.14,226.09,20.8]
[1759415654430,5.08206007,226.14,226.09,20.8]
[1759415654641,5.08206007,226.14,226.07,0.2]
[1759415654845,16.13715868,226.14,226.07,0.2]
[1759415655525,8.90698149,226.11,226.07,0.2]
[1759415655929,4.42199453,226.15,226.08,0.69]
[1759415656125,5.14435534,226.14,226.07,0.2]
[1759415656330,0.66,226.14,226.08,10.87647521]
[1759415656639,5.14435534,226.14,226.08,10.87647521]
[1759415656948,4.48435534,226.12,226.07,0.2]
[1759415657154,4.48435534,226.11,226.07,0.2]
[1759415657452,4.48435534,226.09,226.07,0.2]
[1759415657661,4.42321302,226.08,226.07,0.2]
[1759415657854,9.56756836,226.08,226.07,0.2]
[1759415658265,9.56756836,226.08,226.05,0.2]
[1759415658266,20.62560091,226.08,226.05,0.2]
[1759415658541,4.48435534,226.06,226.05,1e-08]
[1759415658743,31.86,226.06,226.05,1e-08]
[1759415658932,37.00435534,226.06,226.05,1e-08]
[1759415659146,37.00435534,226.06,225.66,16.46290419]
[1759415659147,53.32,226.06,225.66,16.46290419]
[1759415659352,4.48435534,225.95,225.9,0.69]
[1759415659552,4.42536619,225.97,225.9,0.69]
[1759415659733,4.48435534,225.96,225.9,0.69]
[1759415660246,4.42515323,225.99,225.92,10.87647521]
[1759415660456,4.48435534,226.0,225.94,10.87647521]
[1759415660772,36.34465166,226.01,225.95,0.69]
[1759415660949,4.42465166,226.01,225.95,0.69]
[1759415661267,36.34418563,226.04,225.96,10.87647521]
[1759415661446,5.14435534,226.06,225.96,10.87647521]
[1759415661447,5.08370376,226.06,225.98,10.87647521]
[1759415661656,37.00370376,226.06,225.98,15.30164464]
[1759415662346,31.92,226.07,226.0,10.87647521]
[1759415663044,8.90734102,226.1,226.02,10.87647521]